Cogmind - Beta 14 @@@ ROGUE MODE // 2024.08.29 @ 04:06:37 Player: cptwinky Result: Destroyed by LV-B63(E) with Barrage Gun Performance ------------- Evolutions (0) 0 Regions Visited (4) 800 Robots Destroyed (49) 245 Value Destroyed (1261) 1261 Prototype IDs (25) 500 Alien Tech Used (0) 0 Bonus (91) 91 TOTAL SCORE: 2897 Bonus ------- Follower Combat Kills 204 Registered with UFD 300 Friendly Fire -413 Cogmind --------- Core Integrity 0/250 Matter 246/300 Energy 180/200 System Corruption 3% Temperature Warm (147) Movement Treading (165) Location -8/Scraptown Parts ------- > --- POWER (1) -------- Subdweller Power Source > --- PROPULSION (2) --- Improved Treads Armored Treads > --- UTILITY (2) ------ Large Storage Unit Makeshift Medium Armor Plating > --- WEAPON (2) ------- Subdweller Laser Gauss Rifle > --- INVENTORY (15) --- Improved Ion Engine Light Treads Improved Cooling System Improved Sensor Array Seismic Detector Reactive Plating Subdweller Beam Cannon Heavy Ion Cannon Subdweller Machine Gun Assault Cannon Assault Cannon Improved Grenade Launcher Improved Grenade Launcher Improved Datajack Heavy Flail Peak State ------------ > --- POWER ------------ Ion Engine Subdweller Power Source > --- PROPULSION ------- Light Treads Light Treads Wheel Wheel > --- UTILITY ---------- Improved Heat Sink Light Armor Plating Tower Shield > --- WEAPON ----------- Spread Laser Spread Laser Spread Laser Subdweller Laser > --- INVENTORY -------- Aluminum Leg Aluminum Leg Seismic Detector Heavy Riot Gun Subdweller Laser [Rating: 39] Favorites ----------- Power Subdweller Power Source Engine Subdweller Power Source Propulsion Light Treads Treads Light Treads Wheel Wheel Utility Large Storage Unit Device Improved Heat Sink Storage Large Storage Unit Protection Light Armor Plating Weapon Spread Laser Energy Gun Spread Laser Energy Cannon Heavy Ion Cannon Ballistic Gun Subdweller Machine Gun Ballistic Cannon Assault Cannon Special Melee Weapon Improved Datajack Build | -11 -10 -10 -8 -8 ------- Run | Yrd Mat Sub Rec Scr Slots Evolved . | . . . . . Power . | . . . . . Propulsion . | . . . . . Utility . | . . . . . Weapon . | . . . . . Parts Attached 61 | 6 13 23 6 13 Power 5 | 1 1 2 1 . Engine 5 | 1 1 2 1 . Core . | . . . . . Reactor . | . . . . . Propulsion 9 | 2 . 3 3 1 Treads 7 | 2 . 1 3 1 Leg . | . . . . . Wheel 2 | . . 2 . . Hover . | . . . . . Flight . | . . . . . Utility 14 | 1 3 5 2 3 Device 3 | . . 2 . 1 Storage 3 | 1 1 . 1 . Processor . | . . . . . Hackware . | . . . . . Protection 8 | . 2 3 1 2 Artifact . | . . . . . Weapon 33 | 2 9 13 . 9 Energy Gun 15 | . 5 8 . 2 Energy Cannon 5 | . . 1 . 4 Ballistic Gun 10 | 2 4 3 . 1 Ballistic Cannon 2 | . . 1 . 1 Launcher . | . . . . . Special Weapon . | . . . . . Impact Weapon . | . . . . . Slashing Weapon . | . . . . . Piercing Weapon . | . . . . . Special Melee Weapon 1 | . . . . 1 Unidentified Prototypes . | . . . . . Parts Lost 7 | . 2 3 2 . Power 3 | . 1 2 . . Propulsion 2 | . . 1 1 . Utility 2 | . 1 . 1 . Weapon . | . . . . . Highest Loss Streak 2 | . 2 1 2 . To Critical Strikes . | . . . . . Average Slot Usage (%) 90 | . 99 92 77 88 Engine 12 | . 14 11 11 14 Treads 24 | . 28 20 21 28 Wheel 3 | . . 7 5 . Device 3 | . . 4 2 5 Storage 9 | . 14 6 4 14 Protection 8 | . 13 13 10 . Energy Gun 14 | . 11 26 13 . Energy Cannon 4 | . . . . 14 Ballistic Gun 4 | . 16 1 7 . Special Melee Weapon 3 | . . . . 10 Peak Build Rating 39 | 6 9 39 38 23 Average Rating 19 | 4 7 25 21 17 On Entrance 12 | . 6 9 38 8 Naked Turns . | . . . . . Heaviest Build 65 | 11 30 65 61 43 Greatest Support 43 | 40 40 40 43 43 Greatest Overweight (x) 3 | . . 3 3 . Average Overweight (x) . | . . 1 1 . Largest Inventory Capacity 15 | 8 15 15 15 15 Average Capacity 11 | 7 14 9 7 15 Most Carried 15 | 6 15 15 13 15 Average Carried 11 | 3 12 9 6 14 Final Capacity 15 | 8 15 5 15 15 Final Carried 15 | 6 15 5 13 15 Class Distribution -------------------- 36% | Commander-Mutant 35% | Mutant 14% | Tank 11% | Scavenger-Tank Dominant Class ---------------- Mutant | -10/Materials Mutant | -10/Subcaves Commander-Mutant | -8/Recycling Commander-Mutant | -8/Scraptown Resources | -11 -10 -10 -8 -8 ----------- Run | Yrd Mat Sub Rec Scr Matter Collected 1023 | 216 268 296 126 117 Remotely . | . . . . . Salvage Created 1656 | . 574 387 234 461 Parts 77 | . 38 19 10 10 Haulers Intercepted 2 | . 2 . . . Recyclers Shooed 1 | . . . 1 . Parts Field Recycled . | . . . . . Retrieved Matter . | . . . . . Parts Self-Destructed 10 | . . 10 . . Prevented . | . . . . . Kills | -11 -10 -10 -8 -8 ------- Run | Yrd Mat Sub Rec Scr Combat Hostiles Destroyed 36 | . 9 18 4 5 Guns 30 | . 6 18 4 2 Cannons 2 | . . . . 2 AOE 2 | . 2 . . . Classes Destroyed 14 | . 8 2 1 3 Worker 1 | . 1 . . . Builder 2 | . 2 . . . Hauler 2 | . 2 . . . Recycler 2 | . 1 . 1 . Operator 2 | . 2 . . . Watcher 2 | . 2 . . . Swarmer 9 | . 3 6 . . Grunt 8 | . 6 . 2 . Protector 1 | . . . . 1 Sentry 3 | . . . 2 1 Cobbler 1 | . . 1 . . Subdweller 12 | . . 12 . . Federalist 1 | . . . . 1 Explorer 3 | . . . . 3 Best Kill Streak 7 | . 7 4 4 3 Combat Bots Only 4 | . 4 4 3 3 Max Kills in Single Turn 5 | . 5 2 1 2 Gunslinging 1 | . . 1 . . Exploded 2 | . 2 . . . Melee . | . . . . . Uniques/NPCs Destroyed 1 | . . . . 1 Triborg (-8/Scraptown) Combat | -11 -10 -10 -8 -8 -------- Run | Yrd Mat Sub Rec Scr Hostile Shots Fired 156 | . 50 59 14 33 Missed 47 | . 14 22 5 6 Damage Taken 1669 | . 578 675 130 286 Core 251 | . 88 115 . 48 Absorbed by Shields 70 | . . . . 70 Regen/Repaired (Parts) 464 | . 65 . . 399 Core Remaining (%) 100 | 100 . . . . Volleys Fired 124 | . 41 55 13 15 Largest 4 | . 2 3 4 2 Hottest 220 | . 80 195 220 145 Shots Fired 249 | . 82 112 30 25 Gun 232 | . 82 107 30 13 Cannon 17 | . . 5 . 12 Launcher . | . . . . . Special . | . . . . . Kinetic 88 | . 52 14 13 9 Thermal 131 | . . 98 17 16 Explosive . | . . . . . Electromagnetic 30 | . 30 . . . Robot Hit Streak 23 | . 6 23 8 6 Robot Miss Streak 7 | . 7 5 4 5 Penetration Max 1 | . . . . 1 Secondary Targets 3 | . . 3 . . Max Gunslinging Chain 1 | . . 1 . . Shots Hit Robots 160 | . 50 79 18 13 Core Hits 148 | . 33 99 9 7 Critical Kills . | . . . . . Critical Parts Destroyed . | . . . . . Critical Strikes . | . . . . . Melee Attacks 1 | . . . . 1 Impact . | . . . . . Slashing . | . . . . . Piercing . | . . . . . Sneak Attacks 1 | . . . . 1 Combat Hostiles . | . . . . . Follow-up Attacks . | . . . . . Damage Inflicted 3117 | . 1024 1280 380 433 Guns 2400 | . 602 1280 380 138 Cannons 295 | . . . . 295 Explosions 417 | . 417 . . . Melee . | . . . . . Ramming 5 | . 5 . . . Kinetic 718 | . 368 69 178 103 Thermal 2021 | . 278 1211 202 330 Explosive . | . . . . . Electromagnetic 373 | . 373 . . . Impact . | . . . . . Slashing . | . . . . . Piercing . | . . . . . Highest Corruption 3 | . 3 3 3 3 Average Corruption 2 | . 2 3 3 2 Corruption Purged . | . . . . . Corruption Blocked . | . . . . . Effects 76 | . 8 52 16 . Message Errors 21 | . 5 13 3 . Matter Fused 14 | . 1 9 4 . Heat Flow Errors 5 | . 1 4 . . Energy Discharges 16 | . 1 11 4 . Parts Rejected 2 | . . 1 1 . Parts Fused 1 | . . 1 . . Data Loss (minor) 8 | . . 5 3 . Data Loss (major) 5 | . . 4 1 . Misfires 1 | . . 1 . . Alerts 3 | . . 3 . . Overload Shots . | . . . . . Overflow Damage 24 | . 16 . . 8 Projectiles 8 | . . . . 8 Explosions 16 | . 16 . . . Melee . | . . . . . Knockbacks . | . . . . . Impact . | . . . . . Kinetic . | . . . . . Secondary . | . . . . . Self-Inflicted Damage 26 | . 26 . . . Shots 1 | . 1 . . . Rammed 2 | . 2 . . . Targets Rammed 2 | . 2 . . . Kicked . | . . . . . Crushed . | . . . . . Highest Temperature 272 | . 272 176 199 147 Average Temperature 66 | . 69 47 88 69 Received Heat Transfer 482 | . 291 63 54 74 Effects 1 | . 1 . . . Energy Bleed 1 | . 1 . . . Siege Activations . | . . . . . Robots Corrupted 1 | . 1 . . . Combat Hostiles 1 | . 1 . . . Parts Fried 1 | . . . . 1 Impact Corruptions . | . . . . . Robots Melted 1 | . . . . 1 Combat Hostiles 1 | . . . . 1 Parts Melted 8 | . 1 1 . 6 Heat Transferred 2649 | . 450 1515 260 424 Parts Sabotaged . | . . . . . Parts Stolen . | . . . . . Parts Stripped . | . . . . . Power Chain Reactions 4 | . 4 . . . Alert | -11 -10 -10 -8 -8 ------- Run | Yrd Mat Sub Rec Scr Peak Influence 165 | . 165 . 127 . Initial . | . . . . . Average 61 | . 78 . 46 . Maximum Alert Level . | . . . . . Low Security (%) 100 | 100 100 . 100 . Level 1 . | . . . . . Level 2 . | . . . . . Level 3 . | . . . . . Level 4 . | . . . . . Level 5 . | . . . . . High Security . | . . . . . Max Security . | . . . . . Squads Dispatched . | . . . . . Investigation . | . . . . . Extermination . | . . . . . Reinforcement . | . . . . . Assault . | . . . . . Garrison . | . . . . . Intercept . | . . . . . Searches Triggered . | . . . . . Construction Impeded . | . . . . . Haulers Reinforced . | . . . . . Active Scanning Responses . | . . . . . Cargo Convoy Interrupts . | . . . . . Stealth | -11 -10 -10 -8 -8 --------- Run | Yrd Mat Sub Rec Scr Distress Signals . | . . . . . Communications Jammed . | . . . . . Distress Signals . | . . . . . Times Spotted 55 | . 14 21 7 13 Peak Tracking Total 7 | . 3 3 6 7 Tactical Retreats 1 | . . 1 . . Traps | -11 -10 -10 -8 -8 ------- Run | Yrd Mat Sub Rec Scr Traps Triggered 4 | . 3 1 . . Indirectly . | . . . . . Trap Hack Attempts . | . . . . . Triggered . | . . . . . Disarmed . | . . . . . Reprogrammed . | . . . . . Reused 1 | . . . . 1 Traps Extracted . | . . . . . Installed 1 | . . . . 1 Triggered . | . . . . . Most Traps Carried 1 | . . . . 1 Machines | -11 -10 -10 -8 -8 ---------- Run | Yrd Mat Sub Rec Scr Machines Disabled 3 | . 2 1 . . Max in Single Turn 2 | . 2 1 . . Machines Repaired . | . . . . . Machines Dismantled . | . . . . . Machines Sabotaged . | . . . . . Overloaded Fab Kills . | . . . . . Hacking | -11 -10 -10 -8 -8 --------- Run | Yrd Mat Sub Rec Scr Machines Accessed 19 | . 9 2 6 2 Terminals 13 | . 7 . 6 . Fabricators . | . . . . . Repair Stations 1 | . 1 . . . Recycling Units 1 | . 1 . . . Scanalyzers . | . . . . . Garrison Access . | . . . . . Total Hacks 59 | . 33 5 15 6 Successful 37 | . 21 5 5 6 Failed 22 | . 12 . 10 . Catastrophic 7 | . 3 . 4 . Database Lockouts . | . . . . . Manual 28 | . 17 . 11 . Terminals 41 | . 26 . 15 . Fabricators . | . . . . . Repair Stations 5 | . 5 . . . Recycling Units 2 | . 2 . . . Scanalyzers . | . . . . . Garrison Access . | . . . . . Terminal Hacks 25 | . 9 5 5 6 Record 9 | . . 4 . 5 Part Schematic 1 | . . . 1 . Robot Analysis 5 | . 3 . 2 . Prototype ID Bank 5 | . 3 . 2 . Locate Traps 1 | . 1 . . . Zone Layout 2 | . 2 . . . Derelict Proto ID Bank 2 | . . 1 . 1 Fabricator Hacks . | . . . . . Repair Station Hacks 3 | . 3 . . . Scan Component 2 | . 2 . . . Repair 1 | . 1 . . . Recycling Unit Hacks 1 | . 1 . . . Retrieve Components 1 | . 1 . . . Scanalyzer . | . . . . . Garrison Access Hacks . | . . . . . Unauthorized Hacks 7 | . 7 . . . Terminals 6 | . 6 . . . Botnet 1 | . 1 . . . Skim 5 | . 5 . . . Fabricators . | . . . . . Repair Stations . | . . . . . Recycling Units 1 | . 1 . . . Reject 1 | . 1 . . . Scanalyzers . | . . . . . Garrison Access . | . . . . . Data Cores Recovered . | . . . . . Used . | . . . . . Hacking Detections 11 | . 6 . 5 . Full Trace Events . | . . . . . Feedback Events . | . . . . . Feedback Blocked . | . . . . . Robot Schematics Acquired . | . . . . . Robots Built . | . . . . . Authchips . | . . . . . Time . | . . . . . Total Robot Build Rating . | . . . . . Part Schematics Acquired 1 | . . . 1 . Parts Built . | . . . . . Authchips . | . . . . . Time . | . . . . . Total Part Build Rating . | . . . . . Parts Repaired 1 | . 1 . . . Time 26 | . 26 . . . Parts Recycled . | . . . . . Recycled Matter . | . . . . . Retrieved Matter . | . . . . . Retrieved Components 3 | . 3 . . . Parts Scanalyzed . | . . . . . Part Schematics Acquired . | . . . . . Parts Damaged . | . . . . . Bothacking | -11 -10 -10 -8 -8 ------------ Run | Yrd Mat Sub Rec Scr Used RIF Installer . | . . . . . Robots Hacked 1 | . . . . 1 Non-combat . | . . . . . Combat 1 | . . . . 1 Robot Hacks Applied 1 | . . . . 1 parse_system 1 | . . . . 1 Relay Couplers Released . | . . . . . Fabnet Peak Effective % . | . . . . . Robots Rewired 13 | . . . 13 . Allies Hacked . | . . . . . Hacks Repelled . | . . . . . Allies | -11 -10 -10 -8 -8 -------- Run | Yrd Mat Sub Rec Scr Total Allies 13 | . . . 13 . Largest Group 12 | . . . 12 12 Highest-Rated Group 192 | . . . 192 192 Highest-Rated Ally 27 | . . . 27 27 Total Orders . | . . . . . Ally Attacks 46 | . . . 13 33 Total Damage 890 | . . . 268 622 Kills 9 | . . . 4 5 Allies Corrupted . | . . . . . Allies Melted . | . . . . . Intel | -11 -10 -10 -8 -8 ------- Run | Yrd Mat Sub Rec Scr Robot Analysis Total 5 | . 3 . 2 . Derelict Logs Recovered 5 | . . 2 . 3 Drone Launches . | . . . . . Drone Recoveries . | . . . . . Exploration | -11 -10 -10 -8 -8 ------------- Run | Yrd Mat Sub Rec Scr Turns Passed 7113 | 80 1134 2762 974 2163 Spaces Moved 4276 | 44 573 1855 545 1259 Core 4 | 4 . . . . Treads 2829 | 40 573 711 246 1259 Legs . | . . . . . Wheels 1443 | . . 1144 299 . Hover . | . . . . . Flight . | . . . . . Fastest Speed 50 | 50 160 110 125 160 Average Speed 146 | 150 160 131 141 163 Slowest Speed 240 | 160 160 240 240 165 Overloaded Moves . | . . . . . Propulsion Burnouts . | . . . . . Robots Hopped . | . . . . . Cave-ins Triggered . | . . . . . Exploration Rate (%) 72 | 5 95 90 87 86 Regions Visited 4 Branch Regions 3 Pre-discovered Areas 4 | . 2 1 . 1 Known Exits Taken 1 | . . 1 . . Unknown Exits Taken 3 | 1 1 . 1 . Scrap Searched 15 | . . 10 . 5 Spaces Dug 1 | . . 1 . . Terrain Destroyed 9 | . 6 1 2 . Melee . | . . . . . Projectile 3 | . . 1 2 . AOE 6 | . 6 . . . Terrain Rammed . | . . . . . Walls Destroyed . | . . . . . Machines Disabled . | . . . . . Actions | -11 -10 -10 -8 -8 --------- Run | Yrd Mat Sub Rec Scr Total 4909 | 55 710 2080 722 1342 Wait 234 | . 57 122 23 32 Move 4272 | 43 572 1854 544 1259 Hop . | . . . . . Pick Up 56 | 6 18 14 8 10 Fast Attach 21 | 6 1 6 3 5 Attach 11 | . 2 5 2 2 Detach 4 | . . . 2 2 Swap 29 | . 10 12 1 6 Drop 30 | . 7 12 2 9 Fire 124 | . 41 55 13 15 Melee 1 | . . . . 1 Ram . | . . . . . Kick . | . . . . . Crush 2 | . 2 . . . Escape Stasis . | . . . . . Rewire 124 | . . . 124 . Trap 1 | . . . . 1 Miscellaneous . | . . . . . Route ------- -11/Scrapyard -10/Materials (discovered 5 exits: *Mat x3 / [*Min] / *Sub) -10/Subcaves (discovered 3 exits: [*Mat x2] / *Rec) -8/Recycling (discovered 2 exits: [*Fac] / *Scr) -8/Scraptown (discovered 1 exit: [*Fac]) History --------- Turn | Location | Event 10 | -11/Scrapyard | Discovered new exit (range 14) 81 | -11/Scrapyard | Entered Materials 216 | -10/Materials | Discovered new exit (range 13) 244 | -10/Materials | Discovered new exit (range 13) 317 | -10/Materials | Build established: Mutant 402 | -10/Materials | Repaired Lgt. Armor Plating 605 | -10/Materials | Discovered new exit (range 4) 814 | -10/Materials | Discovered new exit (range 16) 966 | -10/Materials | Learned 2 Mines zone layouts 1053 | -10/Materials | Learned Storage stockpile data 1083 | -10/Materials | Identified exit to Materials 1181 | -10/Materials | Discovered new exit (range 15) 1215 | -10/Materials | Entered Subcaves 1556 | -10/Subcaves | A swath of the cavern ceiling suddenly collapsed 1649 | -10/Subcaves | Ambushed by Subdwellers from Twisted Machinery 1791 | -10/Subcaves | Discovered new exit (range 7) 1839 | -10/Subcaves | Core integrity fell below 50% 2010 | -10/Subcaves | Core integrity fell below 20% 2015 | -10/Subcaves | Discovered new exit (range 6) 2383 | -10/Subcaves | Learned location of Zion (-6) 2383 | -10/Subcaves | Met a Zionite searching for "candidates" 2498 | -10/Subcaves | Visited 4L-MR0's lab 2521 | -10/Subcaves | Found Tower Shield 2522 | -10/Subcaves | Attached Tower Shield, gained temporary slots: Power, Propulsion x2, Utility x2, Weapon x2 2818 | -10/Subcaves | Build established: Scavenger-Tank 3053 | -10/Subcaves | Shifting Twisted Machinery released Battle Rifle 3079 | -10/Subcaves | Shifting Twisted Machinery released Flamer 3141 | -10/Subcaves | Build established: Tank 3179 | -10/Subcaves | Shifting Twisted Machinery released Piercing Trap 3183 | -10/Subcaves | Shifting Twisted Machinery released Shrapnel Trap 3247 | -10/Subcaves | Learned Materials interactive machine intel 3783 | -10/Subcaves | Visited Clippyterm 3786 | -10/Subcaves | Identified exit to Recycling 3786 | -10/Subcaves | Learned Research security intel 3977 | -10/Subcaves | Entered Recycling 4184 | -8/Recycling | Discovered new exit (range 12) 4223 | -8/Recycling | Build established: Scavenger-Tank 4769 | -8/Recycling | Build established: Commander-Mutant 4895 | -8/Recycling | Scanned before Scraplab entrance 4918 | -8/Recycling | Entered Scraplab 4931 | -8/Recycling | Discovered new exit (range 4) 4951 | -8/Recycling | Entered Scraptown 4951 | -8/Scraptown | Accompanied by 12 allies 4951 | -8/Scraptown | System corruption cleaned by C-Scrubber 5175 | -8/Scraptown | Heard Great Nut preacher, LISTEN AND RECITE! 5384 | -8/Scraptown | Discovered new exit (range 13) 5408 | -8/Scraptown | Scanned Subdweller tech in exchange for log data 5420 | -8/Scraptown | Learned location of 2 exits from Proximity Caves 5460 | -8/Scraptown | Visited Symbiants 5496 | -8/Scraptown | Visited Awakened 5598 | -8/Scraptown | Visited CR-KLE's Repair Center 5671 | -8/Scraptown | Visited The Evicted 5735 | -8/Scraptown | Visited Science Testing Area 5770 | -8/Scraptown | Visited Spacefarers 5802 | -8/Scraptown | Visited TADAMA 5998 | -8/Scraptown | Visited UFD Registry 5998 | -8/Scraptown | Registered with UFD as "Wrenchbay" 6061 | -8/Scraptown | Visited Science Guys 6165 | -8/Scraptown | Visited Derelict Rescue Squad 6197 | -8/Scraptown | Visited Curators Association 6248 | -8/Scraptown | Visited Junk Repository 6318 | -8/Scraptown | Visited DA-N13 Charitable Foundation 6334 | -8/Scraptown | Found DCF Scrap (26 items) 6370 | -8/Scraptown | Visited LU-1G1's Boring Crew 6417 | -8/Scraptown | Delivered Scrap Shield to a Scientist 6570 | -8/Scraptown | Visited Abandonware Association 6583 | -8/Scraptown | Learned abandonware demo "OVRCLOCK.EXE" 6595 | -8/Scraptown | Learned abandonware demo "HACKBUD.EXE" 6595 | -8/Scraptown | Learned abandonware demo "REBOOT5.EXE" 6634 | -8/Scraptown | Visited Supply Room 6691 | -8/Scraptown | Visited Chapter 10 6865 | -8/Scraptown | CR-KLE repaired 7 parts 6993 | -8/Scraptown | Warned about trapping Scraptown 7060 | -8/Scraptown | Attacked by Scraptown defenders 7065 | -8/Scraptown | Destroyed Triborg 7114 | -8/Scraptown | Destroyed by LV-B63(E) with Barrage Gun Last Messages --------------- 07082_ Acquired Lgt. Armor Plating. 07087_ Acquired 22 matter. 07093_ Dropped Lgt. Armor Plating. 07097_ Defender 3b destroyed. 07099_ EX-TQY(p): "Did MC send you?" 07100_ Slug penetrates EX-TQY(p). 07103_ Slug penetrates Defender 3a. 07103_ Defender 3a destroyed. 07104_ KT-7IP(g) suffers critical hit (Burn). 07105_ KT-7IP(g) heat spikes uncontrollably. 07105_ KT-7IP(g) destroyed. 07107_ Slug penetrates Wall. 07109_ Engineer 3a suffers critical hit (Burn). 07111_ Com. Battery fried. 07111_ Savior 3b destroyed. 07111_ Slug penetrates KTG-V3. 07111_ KTG-V3 destroyed. 07112_ Slug penetrates Transporter 3a. 07112_ Transporter 3a destroyed. 07112_ Destroyed EM Pulse Gun. Map ----- +----------------------------------------------------+ | ##" "#???# #?????#" #?? | | # ##" "#???# #?????# "#?? | | ##" "#???# #?????######## ####?? | | # ### ################## ####???????##### ###### | | #???????#"""" """""" | | #???????#" | | #???????#" | | #???????#" | | #???????#" | | ################# #????####" | | #???????????????# #????"""" """"" | | #???????????????# x #???#"""" """"" | | #????????######## p #???#"""" ""### | | #????????""""" ; % #???#"""" ""#?? | | #???????? " " # #???#"""" ""#?? | | #???????? # ###?#"""" ""#?? | | #???????? """ ; ""#"#"""" ""#? | | #???????# "" ; """"#"""" ""# | | #???????# "" ; ""#######" "" | | #???????# " ; ###?????#" "" | | #???????# " ; t #########" ""# | | #??????## * ! ""# | | #??" " %! != p ""#?? | | #? ""##"" ; !%! ""#?? | | #???????####;;;;; !%! g= ""#?? | | ############;;;;; @%! ""### | | =! = """"" | | *%! """"" | | !!/ % | | %* | | %[ p | | =E! [%= !%! #""""#" | | !==%[%* #????#" | | !%* [=* #????#"""""" """" | | ## ############# ####;;#### ####????####### #### | | "" ""#??# #??# #?????????# | | " " ""#??# #??# #?????????### | | """ ""#??# #??# #??????????# " | | "" " "#??# #??# #??????????# """ | | " " "#??# #??# #??????????# " " | | " " ""#??# #??# #??????????# """ | | "" "" ""#??# #??# #??????????# " | | " "" "#??# #??# #??????????# " | | """""" ""#??###########??# #??????????## " | | """"""""""#???????????????# #???????????"""""""" | | ###########???????????????# #??????????######### | | ?????????????????????###### #??????????????????? | | ???????????????????"""""""" #???????######??#### | | ??????????????????""" """"" #???????? ?#""" | | ??????????##????"""" " "" #????????""""" ## "" | +----------------------------------------------------+ Best States ------------- Heat Dissipation 52 Energy Generation 15 Energy Capacity 350 Matter Stores 300 Matter Capacity 300 Sight Range 16 Terrain Scan Density 10 Armor Coverage 2150 Evasion (%) 40 Recoil Reduction 2 Item Schematics ----------------- Hrd. Medium Armor Plating | -8/Recycling | Hacked Robot Schematics ------------------ None Fabricated ------------ Nothing Alien Tech Used ----------------- None Achievements -------------- None Challenges ------------ None Game ------ Seed RegenerativeDecoderKatana Manual? 0 Play Time 00:31:31 Cumulative 1656.0 hours Start 2024.08.29 @ 03:35:24 End 2024.08.29 @ 04:06:37 Sessions 1 Manual Loads 0 Difficulty Rogue Special Mode None Game No. 1130 Rogue 1126 Adventurer 4 Explorer 0 Win Type - Total 209 Types 156/11/15/9/2/1/3/8/4 Lore% 97 Gallery% 97 Achievement% 98 Wizard Run 0 Options --------- Layout 2 ASCII 0 Keyboard 1 Movement Vi Keybinds 0 Fullscreen 0 Font 24/Terminus Map View 59x48 Zoom Use 0% Tactical HUD 1 Map Filters NONE Filters NONE Steam 1 RUN: 0286a4c5-fb45-4d5a-ae2a-6447e5bca989